fUST/lending_fUST_20240706
["ID","MTS","AMOUNT","RATE_DAILY","PERIOD"]
[331360751,1720270244411,-501.27307828,0.00043835,120]
[331360752,1720270244422,-501.78588237,0.00043835,120]
[331360753,1720270244432,-501.18681792,0.00043835,120]
[331360754,1720270244442,-225.18876167,0.00043835,120]
[331360755,1720270244451,-502.74625858,0.00043835,120]
[331360756,1720270244461,-500.0,0.00043835,120]
[331360757,1720270244471,-500.0,0.00043835,120]
[331360758,1720270244481,-500.0,0.00043835,120]
[331360759,1720270244491,-500.0,0.00043835,120]
[331360760,1720270244501,-186.98522794,0.00043835,120]
[331360761,1720270244511,-873.85,0.00043835,120]
[331360762,1720270244520,-500.0,0.00043835,120]
[331360763,1720270244530,-546.3,0.00043835,120]
[331360764,1720270244540,-628.1,0.00043835,120]
[331360765,1720270244550,-500.0,0.00043835,120]
[331360766,1720270244560,-678.11,0.00043835,120]
[331360767,1720270244570,-502.53548147,0.00043835,7]
[331360768,1720270244580,-500.0,0.00043835,120]
[331360769,1720270244590,-500.0,0.00043835,120]
[331360770,1720270244600,-500.0,0.00043835,20]
[331360771,1720270244610,-500.0,0.00043835,120]
[331360772,1720270244619,-510.30515403,0.00043835,120]
[331360773,1720270244629,-500.0,0.00043835,120]
[331360774,1720270244638,-500.0,0.00043835,120]
[331360775,1720270244647,-500.0,0.00043835,120]
[331360776,1720270244661,-153.92886431,0.00043835,120]
[331360777,1720270244672,-500.0,0.00043835,120]
[331360778,1720270244681,-500.0,0.00043835,120]
[331360779,1720270244690,-510.67176337,0.00043835,120]
[331360780,1720270244700,-500.0,0.00043835,120]
[331360781,1720270244709,-216.19982751,0.00043835,120]
[331360782,1720270244718,-500.0,0.00043835,120]
[331360783,1720270244727,-500.0,0.00043835,120]
[331360784,1720270244736,-500.0,0.00043835,120]
[331360785,1720270244745,-500.0,0.00043835,120]
[331360786,1720270244754,-500.0,0.00043835,120]
[331360787,1720270244764,-500.93838877,0.00043835,120]
[331360788,1720270244775,-500.0,0.00043835,120]
[331360789,1720270244784,-1000.0,0.00043835,90]
[331360790,1720270244795,-500.0,0.00043835,120]
[331360791,1720270244806,-503.17,0.00043835,120]
[331360792,1720270244815,-503.20759541,0.00043835,120]
[331360793,1720270244825,-500.0,0.00043835,120]
[331360794,1720270244835,-502.34866789,0.00043835,120]
[331360795,1720270244845,-500.0,0.00043835,120]
[331360796,1720270244854,-500.0,0.00043835,120]
[331360797,1720270244865,-1203.85,0.00043835,120]
[331360798,1720270244875,-500.0,0.00043835,120]
[331360799,1720270244884,-500.0,0.00043835,120]
[331360800,1720270244894,-517.2815086,0.00043835,120]
[331360801,1720270244905,-527.31,0.00043835,120]
[331360802,1720270244914,-785.44,0.00043835,120]
[331360803,1720270244924,-500.0,0.00043835,120]
[331360804,1720270244933,-501.63999866,0.00043835,120]
[331360805,1720270244943,-500.0,0.00043835,120]
[331360806,1720270244953,-200.789506,0.00043835,14]
[331360807,1720270244962,-502.59942762,0.00043835,120]
[331360808,1720270244974,-502.69991011,0.00043835,120]
[331360809,1720270244986,-501.79484719,0.00043835,120]
[331360810,1720270244997,-500.0,0.00043835,120]
[331360811,1720270245007,-500.0,0.00043835,120]
[331360812,1720270245017,-500.0,0.00043835,120]
[331360813,1720270245026,-500.0,0.00043835,120]
[331360814,1720270245036,-504.41574764,0.00043835,120]
[331360815,1720270245046,-500.0,0.00043835,120]
[331360816,1720270245056,-500.0,0.00043835,120]
[331360817,1720270245065,-500.0,0.00043835,120]
[331360818,1720270245075,-500.0,0.00043835,120]
[331360819,1720270245085,-500.0,0.00043835,120]
[331360820,1720270245094,-500.0,0.00043835,120]
[331360821,1720270245105,-500.0,0.00043835,120]
[331360822,1720270245114,-500.0,0.00043835,120]
[331360823,1720270245124,-500.0,0.00043835,120]
[331360824,1720270245133,-500.0,0.00043835,120]
[331360825,1720270245143,-500.0,0.00043835,120]
[331360826,1720270245154,-500.0,0.00043835,120]
[331360827,1720270245164,-500.0,0.00043835,120]
[331360828,1720270245175,-500.0,0.00043835,120]
[331360829,1720270245194,-500.0,0.00043835,120]
[331360830,1720270245203,-500.0,0.00043835,120]
[331360831,1720270245213,-152.194795,0.00043835,14]
[331360832,1720270245223,-500.0,0.00043835,120]
[331360833,1720270245232,-500.0,0.00043835,120]
[331360834,1720270245242,-500.0,0.00043835,120]
[331360835,1720270245252,-500.0,0.00043835,120]
[331360836,1720270245261,-500.0,0.00043835,120]
[331360837,1720270245271,-500.0,0.00043835,120]
[331360838,1720270245281,-500.0,0.00043835,120]
[331360839,1720270245291,-500.0,0.00043835,120]
[331360840,1720270245300,-500.0,0.00043835,120]
[331360841,1720270245310,-500.0,0.00043835,120]
[331360842,1720270245319,-150.41484843,0.00043835,120]
[331360843,1720270245329,-500.0,0.00043835,120]
[331360844,1720270245339,-574.1318985,0.00043835,120]
[331360845,1720270245348,-1463.08,0.00043835,120]
[331360846,1720270245358,-500.0,0.00043835,120]
[331360847,1720270245367,-500.0,0.00043835,120]
[331360848,1720270245376,-500.0,0.00043835,120]
[331360849,1720270245386,-544.60196898,0.00043835,120]
[331360850,1720270245395,-500.0,0.00043835,120]
[331360851,1720270245404,-500.0,0.00043835,30]
[331360852,1720270245414,-830.95,0.00043835,120]
[331360853,1720270245423,-1141.2,0.00043835,21]
[331360854,1720270245433,-500.0,0.00043835,120]
[331360855,1720270245442,-151.0,0.00043835,14]
[331360856,1720270245452,-151.0,0.00043835,14]
[331360857,1720270245462,-500.0,0.00043835,120]
[331360858,1720270245471,-151.0,0.00043835,14]
[331360859,1720270245481,-151.0,0.00043835,14]
[331360860,1720270245490,-151.0,0.00043835,14]
[331360861,1720270245499,-500.0,0.00043835,120]
[331360862,1720270245509,-151.0,0.00043835,14]
[331360863,1720270245518,-500.0,0.00043835,120]
[331360864,1720270245528,-151.0,0.00043835,14]
[331360865,1720270245537,-151.0,0.00043835,14]
[331360866,1720270245546,-151.0,0.00043835,14]
[331360867,1720270245555,-500.0,0.00043835,120]
[331360868,1720270245564,-500.0,0.00043835,120]
[331360869,1720270245573,-500.0,0.00043835,120]
[331360870,1720270245583,-542.86,0.00043835,120]
[331360871,1720270245592,-500.0,0.00043835,2]
[331360872,1720270245602,-504.49121844,0.00043835,120]
[331360873,1720270245611,-500.0,0.00043835,120]
[331360874,1720270245621,-537.35,0.00043835,120]
[331360875,1720270245632,-603.8,0.00043835,120]
[331360876,1720270245642,-527.77014961,0.00043835,120]
[331360877,1720270245652,-500.0,0.00043835,120]
[331360878,1720270245662,-500.0,0.00043835,120]
[331360879,1720270245671,-501.63305916,0.00043835,120]
[331360880,1720270245680,-500.0,0.00043835,120]
[331360881,1720270245690,-500.0,0.00043835,120]
[331360882,1720270245700,-500.0,0.00043835,120]
[331360883,1720270245709,-500.0,0.00043835,120]
[331360884,1720270245718,-500.0,0.00043835,120]
[331360885,1720270245727,-509.49118362,0.00043835,120]
[331360886,1720270245737,-502.55642411,0.00043835,120]
[331360887,1720270245746,-500.0,0.00043835,120]
[331360888,1720270245755,-197.515395,0.00043835,14]
[331360889,1720270245765,-500.0,0.00043835,120]
[331360890,1720270245778,-505.84992118,0.00043835,120]
[331360891,1720270245788,-500.0,0.00043835,120]
[331360892,1720270245799,-500.0,0.00043835,120]
[331360893,1720270245809,-500.0,0.00043835,120]
[331360894,1720270245821,-500.0,0.00043835,120]
[331360895,1720270245832,-503.05682226,0.00043835,120]
[331360896,1720270245842,-500.0,0.00043835,120]
[331360897,1720270245852,-500.0,0.00043835,120]
[331360898,1720270245861,-724.54,0.00043835,120]
[331360899,1720270245871,-500.0,0.00043835,120]
[331360900,1720270245883,-500.0,0.00043835,120]
[331360901,1720270245901,-500.0,0.00043835,120]
[331360902,1720270245913,-500.0,0.00043835,120]
[331360903,1720270245925,-500.0,0.00043835,120]
[331360904,1720270245937,-388.391841,0.00043835,2]
[331360905,1720270245952,-388.391841,0.00043835,2]
[331360906,1720270245966,-388.391841,0.00043835,2]
[331360907,1720270245979,-388.391841,0.00043835,2]
[331360908,1720270245990,-388.391841,0.00043835,2]
[331360909,1720270246000,-500.0,0.00043835,120]
[331360910,1720270246014,-500.0,0.00043835,120]
[331360911,1720270246025,-179.42821908,0.00043835,120]
[331360912,1720270246038,-581.56878288,0.00043835,120]
[331360913,1720270246052,-388.391841,0.00043835,2]
[331360914,1720270246065,-388.391841,0.00043835,2]
[331360915,1720270246078,-388.391841,0.00043835,2]
[331360916,1720270246093,-500.0,0.00043835,120]
[331360917,1720270246107,-388.391841,0.00043835,2]
[331360918,1720270246120,-500.0,0.00043835,120]
[331360919,1720270246132,-388.391841,0.00043835,2]
[331360920,1720270246143,-388.391841,0.00043835,2]
[331360921,1720270246155,-388.391841,0.00043835,2]
[331360922,1720270246167,-388.391841,0.00043835,2]
[331360923,1720270246180,-2025.98,0.00043835,120]
[331360924,1720270246193,-538.47,0.00043835,120]
[331360925,1720270246206,-388.391841,0.00043835,2]
[331360926,1720270246219,-388.391841,0.00043835,2]
[331360927,1720270246230,-388.391841,0.00043835,2]
[331360928,1720270246241,-500.0,0.00043835,120]
[331360929,1720270246252,-500.0,0.00043835,120]
[331360930,1720270246264,-500.0,0.00043835,120]
[331360931,1720270246274,-500.0,0.00043835,120]
[331360932,1720270246286,-500.0,0.00043835,120]
[331360933,1720270246297,-636.7793891,0.00043835,120]
[331360934,1720270246309,-500.0,0.00043835,120]
[331360935,1720270246321,-500.0,0.00043835,120]
[331360936,1720270246332,-500.0,0.00043835,120]
[331360937,1720270246345,-552.04,0.00043835,120]
[331360938,1720270246358,-500.0,0.00043835,120]
[331360939,1720270246371,-500.0,0.00043835,120]
[331360940,1720270246382,-505.75699506,0.00043835,120]
[331360941,1720270246392,-500.0,0.00043835,120]
[331360942,1720270246402,-500.0,0.00043835,120]
[331360943,1720270246413,-502.74224461,0.00043835,120]
[331360944,1720270246423,-500.0,0.00043835,120]
[331360945,1720270246436,-500.50668382,0.00043835,120]
[331360946,1720270246447,-500.0,0.00043835,120]
[331360947,1720270246459,-501.18628466,0.00043835,120]
[331360948,1720270246471,-500.0,0.00043835,120]
[331360949,1720270246482,-501.77541142,0.00043835,120]
[331360950,1720270246494,-2034.94,0.00043835,120]
[331360951,1720270246506,-509.62990281,0.00043835,120]
[331360952,1720270246519,-500.0,0.00043835,120]
[331360953,1720270246530,-500.0,0.00043835,120]
[331360954,1720270246540,-500.0,0.00043835,120]
[331360955,1720270246550,-501.99241936,0.00043835,120]
[331360956,1720270246561,-151.0,0.00043835,14]
[331360957,1720270246571,-151.0,0.00043835,14]
[331360958,1720270246583,-501.87716586,0.00043835,120]
[331360959,1720270246595,-500.0,0.00043835,120]
[331360960,1720270246606,-151.0,0.00043835,14]
[331360961,1720270246617,-501.36525924,0.00043835,30]
[331360962,1720270246628,-151.0,0.00043835,14]
[331360963,1720270246639,-151.0,0.00043835,14]
[331360964,1720270246650,-500.0,0.00043835,120]
[331360965,1720270246662,-151.0,0.00043835,14]
[331360966,1720270246673,-151.0,0.00043835,14]
[331360967,1720270246684,-565.43161138,0.00043835,120]
[331360968,1720270246697,-500.0,0.00043835,120]
[331360969,1720270246708,-503.48956537,0.00043835,120]
[331360970,1720270246719,-193.179141,0.00043835,14]
[331360971,1720270246730,-500.0,0.00043835,120]
[331360972,1720270246741,-500.0,0.00043835,120]
[331360973,1720270246752,-500.0,0.00043835,120]
[331360974,1720270246763,-500.0,0.00043835,120]
[331360975,1720270246777,-500.0,0.00043835,120]
[331360976,1720270246789,-500.0,0.00043835,120]
[331360977,1720270246801,-500.0,0.00043835,120]
[331360978,1720270246812,-500.0,0.00043835,120]
[331360979,1720270246823,-500.0,0.00043835,120]
[331360980,1720270246834,-500.0,0.00043835,120]
[331360981,1720270246845,-500.0,0.00043835,120]
[331360982,1720270246856,-500.0,0.00043835,120]
[331360983,1720270246867,-500.0,0.00043835,120]
[331360984,1720270246877,-500.0,0.00043835,120]
[331360985,1720270246888,-228.24926887,0.00043835,120]
[331360986,1720270246899,-505.91922995,0.00043835,120]
[331360987,1720270246911,-151.0,0.00043835,14]
[331360988,1720270246922,-151.0,0.00043835,14]
[331360989,1720270246933,-500.0,0.00043835,120]
[331360993,1720270246944,-26.76332965,0.00043835,14]
[331361037,1720270247837,-7003.0,0.00041,120]
[331361038,1720270248154,-12560.0,0.00041,120]
[331361044,1720270329266,258.0,0.00025,2]
[331361061,1720270983433,500.0,0.00032557,30]
[331361062,1720270998342,500.0,0.00032557,30]
[331361070,1720271229214,-159.550382,0.00021096,2]
[331361071,1720271229237,-6864.78319596,0.00025501,2]
[331361072,1720271229260,-776.67023249,0.00029869,2]
[331361073,1720271229286,-500.0,0.0003253,30]
[331361074,1720271229308,-763.20815407,0.00032557,4]
[331361075,1720271229331,-188.00077952,0.00032557,4]
[331361076,1720271229355,-233.1003012,0.00033398,2]
[331361077,1720271229378,-173.108916,0.00034325,2]
[331361078,1720271229402,-300.0,0.00037587,2]
[331361079,1720271229427,-159.550382,0.00037652,2]
[331361080,1720271229449,-183.5686132,0.00039393,2]
[331361081,1720271235176,-157.67667827,0.00029903,2]
[331361082,1720271235201,-81.3371761,0.00039393,2]
[331361083,1720271235224,-1000.0,0.0004,30]
[331361084,1720271235246,-155.25400838,0.00040229,4]
[331361085,1720271235268,-351.42169063,0.00040278,30]
[331361086,1720271235289,-304.17718707,0.00040278,4]
[331361087,1720271235311,-401.58041188,0.00040278,4]
[331361088,1720271235334,-5114.98648278,0.00040599,20]
[331361089,1720271245109,-996.88616073,0.00040599,20]
[331361090,1720271245133,-154.86836189,0.00040807,4]
[331361091,1720271245159,-4509.4173064,0.0004099,5]
[331361095,1720271345123,-5262.5011372,0.00035893,2]
[331361096,1720271345146,-4576.52213064,0.00039177,4]
[331361119,1720271433965,-1000.0,0.0004,40]
[331361121,1720271433975,-381.24860195,0.00040807,4]
[331361123,1720271433984,-611.13627085,0.0004089,28]
[331361126,1720271433994,-500.0,0.00040999,31]
[331361130,1720271434004,-500.0,0.00040999,31]
[331361134,1720271434013,-500.0,0.00040999,7]
[331361138,1720271434023,-500.0,0.00040999,31]
[331361142,1720271434032,-500.0,0.00040999,31]
[331361146,1720271434043,-441.94509081,0.00040999,7]
[331361150,1720271434053,-500.0,0.00040999,31]
[331361154,1720271434062,-500.0,0.00040999,7]
[331361159,1720271434073,-500.0,0.00040999,7]
[331361162,1720271434083,-500.0,0.00040999,31]
[331361165,1720271434093,-500.0,0.00040999,31]
[331361168,1720271434103,-500.0,0.00040999,7]
[331361171,1720271434112,-529.2710925,0.00040999,31]
[331361174,1720271434123,-77089.94011572,0.00041,120]
[331361177,1720271434132,-1206.16540761,0.00041457,2]
[331361179,1720271434142,-182.92,0.00041547,30]
[331361181,1720271434151,-291.38,0.00041547,3]
[331361182,1720271434161,-39807.1665373,0.00041557,5]
[331361184,1720271434172,-160.0,0.00041567,3]
[331361186,1720271434181,-1206.16540759,0.00042019,2]
[331361188,1720271434192,-611.13627078,0.00042177,28]
[331361190,1720271434202,-1000.0,0.000425,120]
[331361192,1720271434214,-1206.16540759,0.0004258,2]
[331361194,1720271434223,-160.0,0.00042869,4]
[331361196,1720271434233,-1000.0,0.00043,43]
[331361198,1720271434242,-1206.16540759,0.00043142,2]
[331361200,1720271434252,-24144.54934159,0.000432,120]
[331361202,1720271434262,-2273.65752433,0.00043287,4]
[331361204,1720271434271,-264.9057893,0.00043287,2]
[331361206,1720271434281,-1653.75618098,0.0004339,2]
[331361208,1720271434290,-424.37761213,0.00043399,31]
[331361210,1720271434301,-500.0,0.00043399,31]
[331361212,1720271434310,-500.0,0.00043399,31]
[331361215,1720271434320,-500.0,0.00043399,31]
[331361217,1720271434331,-500.0,0.00043399,31]
[331361219,1720271434340,-500.0,0.00043399,31]
[331361221,1720271434350,-500.0,0.00043399,31]
[331361222,1720271434360,-242.86526254,0.00043399,31]
[331361224,1720271434370,-500.0,0.00043399,31]
[331361225,1720271434379,-500.0,0.00043399,31]
[331361226,1720271434389,-500.0,0.00043399,31]
[331361227,1720271434398,-500.0,0.00043399,31]
[331361228,1720271434407,-551.64946608,0.00043399,31]
[331361229,1720271434417,-500.0,0.00043399,31]
[331361230,1720271434427,-500.0,0.00043399,31]
[331361231,1720271434437,-500.0,0.00043399,31]
[331361232,1720271434446,-500.0,0.00043399,31]
[331361233,1720271434456,-500.0,0.00043399,31]
[331361234,1720271434467,-500.0,0.00043399,31]
[331361235,1720271434477,-328853.43321276,0.000434,7]
[331361278,1720271438709,-500.0,0.00040999,31]
[331361279,1720271438719,-500.0,0.00040999,7]
[331361280,1720271438728,-455.46227038,0.00040999,31]
[331361281,1720271438738,-500.0,0.00040999,7]
[331361282,1720271438748,-500.0,0.00040999,7]
[331361283,1720271438758,-500.0,0.00040999,31]
[331361284,1720271438767,-65.71871151,0.00040999,7]
[331361285,1720271439064,-434.28128849,0.00040999,7]
[331361286,1720271439075,-500.0,0.00040999,31]
[331361287,1720271439086,-500.0,0.00040999,7]
[331361288,1720271439096,-500.0,0.00040999,31]
[331361289,1720271439107,-500.0,0.00040999,7]
[331361290,1720271439118,-242.81,0.00041547,3]
[331361291,1720271439128,-500.0,0.00043399,31]
[331361292,1720271439139,-500.0,0.00043399,31]
[331361293,1720271439150,-500.0,0.00043399,31]
[331361294,1720271439161,-500.0,0.00043399,31]
[331361295,1720271439172,-500.0,0.00043399,31]
[331361296,1720271439183,-967.21482422,0.000434,7]
[331361297,1720271439197,-3486.9729487,0.000434,7]
[331361298,1720271439211,-538983.83432832,0.000434,7]
[331361299,1720271439224,-378.33321948,0.000434,7]
[331361303,1720271441298,-1268.41937026,0.000434,7]
[331361375,1720271446651,-66158.31573243,0.000434,7]
[331361441,1720272242674,307.50998759,0.00026,20]
[331361460,1720272358113,-309.6439095,0.00031251,4]
[331361461,1720272358134,-84.09062007,0.00031515,4]
[331361463,1720272435102,-4375.31724682,0.00034563,2]
[331361470,1720272561135,-3813.7684422,0.00034574,4]
[331361471,1720272561155,-2293.59985726,0.00035259,4]
[331361472,1720272561174,-300.0,0.00035259,2]
[331361473,1720272561194,-300.0,0.00035259,2]
[331361474,1720272561215,-267.4468233,0.00035365,2]
[331361475,1720272561236,-166.666666,0.00035894,2]
[331361476,1720272562092,-565.7746747,0.00037587,4]
[331361477,1720272562113,-194.43676746,0.00037899,4]
[331361478,1720272562134,-247.69755983,0.00037899,4]
[331361479,1720272562154,-156.66074006,0.00037999,4]
[331361480,1720272562174,-714.87934541,0.00038499,4]
[331361481,1720272562195,-550.26615584,0.00039177,4]
[331361482,1720272562215,-706.63540107,0.00039177,4]
[331361483,1720272563620,538.65713944,0.00039177,4]
[331361484,1720272568840,155.24403697,0.00039393,10]
[331361500,1720272632563,-269.8439764,0.00039994,4]
[331361501,1720272632573,-155.14185773,0.00039994,4]
[331361502,1720272632582,-3990.98413807,0.00039999,4]
[331361503,1720272632593,-869.18444447,0.0004,4]
[331361504,1720272632603,-2368.6112872,0.0004,30]
[331361505,1720272632615,-543.03165876,0.00040228,4]
[331361506,1720272632629,-166.666666,0.00040788,2]
[331361507,1720272632640,-2561.07590952,0.00041095,2]
[331361508,1720272632650,-611.00782555,0.00041095,4]
[331361509,1720272632660,-304.48464847,0.00041314,4]
[331361510,1720272632670,-3813.7684422,0.00041894,4]
[331361511,1720272632679,-155.70025212,0.00042398,4]
[331361512,1720272632688,-1000.0,0.000425,120]
[331361513,1720272632698,-1000.0,0.00043,43]
[331361514,1720272632707,-321.85249379,0.000433,2]
[331361515,1720272632716,-321.85249375,0.00043384,2]
[331361516,1720272632726,-500.0,0.00043389,31]
[331361517,1720272632735,-604.66056565,0.00043389,7]
[331361518,1720272632744,-500.0,0.00043389,31]
[331361519,1720272632754,-500.0,0.00043389,31]
[331361520,1720272632763,-500.0,0.00043389,31]
[331361521,1720272632772,-324.98696927,0.00043389,31]
[331361522,1720272632781,-168.62,0.0004339,3]
[331361523,1720272632791,-76297.9423824,0.0004339,5]
[331361524,1720272632800,-5644.0,0.000434,7]
[331361525,1720272632810,-85931.90117265,0.000434,7]
[331361526,1720272632820,-321.85249375,0.00043468,2]
[331361527,1720272632830,-321.85249375,0.00043551,2]
[331361528,1720272632840,-5000.0,0.00043561,120]
[331361529,1720272632849,-5000.0,0.00043561,120]
[331361530,1720272632861,-5000.0,0.00043561,120]
[331361531,1720272632870,-5000.0,0.00043561,120]
[331361532,1720272632880,-5000.0,0.00043561,120]
[331361533,1720272632890,-5000.0,0.00043561,120]
[331361534,1720272632900,-5000.0,0.00043561,120]
[331361535,1720272632909,-689.54095567,0.00043561,120]
[331361536,1720272632920,-321.85249375,0.00043635,2]
[331361537,1720272632931,-38148.9711912,0.00043704,5]
[331361538,1720272632940,-38148.9711912,0.00043714,5]
[331361539,1720272632956,-2023.14454787,0.00043722,31]
[331361540,1720272633924,159.550382,0.00021096,2]
[331361574,1720272641387,-1481.65534805,0.00041095,4]
[331361575,1720272641397,-174.24,0.0004339,3]
[331361576,1720272641406,-500.0,0.00043722,31]
[331361577,1720272641416,-500.0,0.00043722,31]
[331361578,1720272641425,-634.73583379,0.00043722,31]
[331361579,1720272641434,-500.0,0.00043722,31]
[331361581,1720272641444,-181.87611949,0.00043722,31]
[331361583,1720272641454,-365.49483983,0.00043722,31]
[331361585,1720272641463,-500.0,0.00043722,31]
[331361587,1720272641472,-500.0,0.00043722,31]
[331361588,1720272641481,-500.0,0.00043722,31]
[331361589,1720272641490,-500.0,0.00043722,31]
[331361590,1720272641500,-500.0,0.00043722,31]
[331361591,1720272641509,-500.0,0.00043722,31]
[331361592,1720272641518,-500.0,0.00043722,31]
[331361593,1720272641527,-500.0,0.00043722,31]
[331361595,1720272641537,-4670.65622107,0.00043722,31]
[331361633,1720272643853,-289.89676959,0.00043722,31]
[331361634,1720272643867,-1041.50543224,0.00043722,31]
[331361643,1720272643992,-11034.20628849,0.00043722,31]
[331361691,1720272647492,-99.48290893,0.00043722,31]
[331361692,1720272647502,-1490.25999207,0.00043724,5]
[331361694,1720272647513,-305.47,0.00043724,5]
[331361702,1720272647760,-6421.0693279,0.00043724,5]
[331361704,1720272647773,-982.2578516,0.00043724,5]
[331361706,1720272647785,-2802.90876107,0.00043724,5]
[331361739,1720272675966,1986.97335839,0.0002557,2]
[331361742,1720272713978,2669.63790954,0.00030993,4]
[331361764,1720272942730,500.0,0.00032583,30]
[331361765,1720272944543,500.0,0.00032583,30]
[331361766,1720272947174,500.0,0.00032583,30]
[331361773,1720273500702,1888.62,0.0001701,2]
[331361774,1720273544173,-159.550382,0.00021096,2]
[331361775,1720273544194,-403.37885226,0.00027399,2]
[331361776,1720273544215,-155.7780495,0.00027999,2]
[331361777,1720273544236,-642.76758109,0.0003,4]
[331361778,1720273544263,-256.62817542,0.00030993,4]
[331361779,1720273544286,-300.0,0.00032582,2]
[331361780,1720273544311,-300.0,0.00032582,2]
[331361781,1720273544334,-130.77490716,0.00032583,3]
[331361784,1720273632119,-402.12337301,0.00019165,2]
[331361785,1720273632142,-1986.97335839,0.00025501,2]
[331361786,1720273632166,-502.78228527,0.00027184,2]
[331361787,1720273632190,-194.05460218,0.00032583,3]
[331361788,1720273632216,-763.32326228,0.00032583,4]
[331361789,1720273632240,-2033.71440405,0.00032583,4]
[331361796,1720273748131,-1986.97335839,0.00023453,2]
[331361797,1720273751166,-2139.23021182,0.00032583,4]
[331361798,1720273751188,-475.23,0.00032583,30]
[331361799,1720273751210,-299.670113,0.00033079,2]
[331361800,1720273751231,-531.56332391,0.00036,30]
[331361801,1720273751251,-6910.00783252,0.00036,30]
[331361802,1720273752200,-3614.8473217,0.0003601,2]
[331361803,1720273752224,-250.0,0.00036829,2]
[331361804,1720273752246,-322.44786838,0.00037999,4]
[331361805,1720273752268,-155.38326507,0.00037999,4]
[331361806,1720273752290,-580.72603665,0.00038,10]
[331361807,1720273752315,-156.90902496,0.00038229,4]
[331361808,1720273752337,-154.62117811,0.00038499,4]
[331361809,1720273753073,155.17986803,0.00037999,4]
[331361811,1720273797627,214.9999004,0.00039393,4]
[331361813,1720273828688,2669.63790954,0.00039177,4]
[331361887,1720273840883,-160.0,0.00042088,3]
[331361889,1720273840893,-1000.0,0.000425,120]
[331361892,1720273840903,-500.0,0.00042945,2]
[331361894,1720273840913,-200.0,0.00043,120]
[331361895,1720273840924,-457.9455149,0.00043635,2]
[331361897,1720273840934,-457.94551489,0.0004366,2]
[331361900,1720273840947,-457.94551489,0.00043685,2]
[331361902,1720273840960,-457.94551489,0.0004371,2]
[331361904,1720273840970,-2008.21794043,0.00043724,5]
[331361923,1720273842356,-5712.9,0.00043724,5]
[331361926,1720273842370,-280.86267126,0.00043724,5]
[331361928,1720273842385,-326.30699977,0.00043724,5]
[331361967,1720273845074,-12768.26089616,0.00043724,5]
[331361970,1720273845236,-518.9864386,0.00043724,5]
[331361971,1720273845250,-4092.83957729,0.00043724,5]
[331362061,1720273848627,-3681.82952532,0.00043724,5]
[331362062,1720273848640,-1695.69128707,0.00043724,5]
[331362063,1720273848649,-412.62,0.00043724,30]
[331362064,1720273848659,-871.23,0.00043724,3]
[331362065,1720273848668,-668.67730428,0.00043725,2]
[331362066,1720273848679,-258.33188547,0.00043733,31]
[331362067,1720273848689,-500.0,0.00043733,7]
[331362068,1720273848699,-252.35104302,0.00043733,31]
[331362069,1720273848717,-500.0,0.00043733,7]
[331362070,1720273848727,-570.11067505,0.00043733,7]
[331362071,1720273848737,-8950.98780511,0.00043734,5]
[331362072,1720273848750,-11049.0,0.00043734,5]
[331362073,1720273848762,-6421.0693279,0.00043734,5]
[331362074,1720273848774,-982.2578516,0.00043734,5]
[331362075,1720273848787,-2802.90876107,0.00043734,5]
[331362105,1720274121872,502.6,0.00024,31]
[331362131,1720274834489,-159.550382,0.00021096,2]